[Event "Ebbe Cup 48"]
[Site "Goteborgs Schackcentrum, Vegatan 20, Gothenburg, Sweden"]
[Date "2025.02.15"]
[Round "3.6"]
[White "Sivarama, Saadhvik"]
[Black "Bergdahl, Daniel"]
[Result "0-1"]
[TimeControl "90 minutes + 30 seconds per move from move one"]
[WhiteFideId "1773720"]
[BlackFideId "1780921"]
[WhiteElo "1657"]
[BlackElo "1818"]

1. e4 {[%clk 01:29:50]} {[%emt 00:01:10]} c6 {[%clk 01:30:50]} {[%emt
00:00:11]} 2. Nc3 {[%clk 01:30:01]} {[%emt 00:00:19]} d5 {[%clk 01:31:07]}
{[%emt 00:00:13]} 3. Nf3 {[%clk 01:30:21]} {[%emt 00:00:09]} dxe4 {[%clk
01:31:31]} {[%emt 00:00:06]} 4. Nxe4 {[%clk 01:30:42]} {[%emt 00:00:08]} Nf6
{[%clk 01:31:56]} {[%emt 00:00:05]} 5. Qe2 {[%clk 01:30:56]} {[%emt 00:00:17]}
Nxe4 {[%clk 01:32:19]} {[%emt 00:00:07]} 6. Qxe4 {[%clk 01:30:25]} {[%emt
00:01:01]} Be6 {[%clk 01:32:42]} {[%emt 00:00:06]} 7. Bc4 {[%clk 01:28:21]}
{[%emt 00:02:35]} Bxc4 {[%clk 01:31:25]} {[%emt 00:01:47]} 8. Qxc4 {[%clk
01:28:42]} {[%emt 00:00:09]} Nd7 {[%clk 01:31:35]} {[%emt 00:00:20]} 9. d4
{[%clk 01:25:52]} {[%emt 00:03:21]} Nb6 {[%clk 01:30:25]} {[%emt 00:01:40]} 10.
Qb3 {[%clk 01:25:11]} {[%emt 00:01:10]} e6 {[%clk 01:28:52]} {[%emt 00:02:04]}
11. Be3 {[%clk 01:24:36]} {[%emt 00:01:04]} Qc7 {[%clk 01:28:12]} {[%emt
00:01:11]} 12. Ne5 {[%clk 01:23:06]} {[%emt 00:02:00]} a5 {[%clk 01:26:06]}
{[%emt 00:02:35]} 13. O-O {[%clk 01:20:36]} {[%emt 00:03:00]} Bd6 {[%emt
00:07:07]} 14. c4 {[%clk 01:14:50]} a4 {[%clk 01:24:44]} {[%emt 00:01:32]} 15.
Qc2 {[%clk 01:14:56]} {[%emt 00:00:24]} Nd7 {[%clk 01:19:06]} {[%emt 00:06:08]}
16. Nxd7 {[%clk 01:13:08]} {[%emt 00:02:18]} Qxd7 {[%clk 01:19:13]} {[%emt
00:00:22]} 17. c5 {[%clk 01:10:53]} {[%emt 00:02:46]} Bc7 {[%clk 01:18:11]}
{[%emt 00:01:32]} 18. Rad1 {[%emt 00:06:13]} O-O {[%clk 01:14:59]} {[%emt
00:03:39]} 19. Qd2 {[%clk 01:02:48]} {[%emt 00:02:55]} a3 {[%clk 01:10:38]}
{[%emt 00:04:51]} 20. b3 {[%clk 01:01:02]} {[%emt 00:02:16]} Qd5 {[%clk
01:07:40]} {[%emt 00:03:27]} 21. Qb4 {[%clk 00:57:56]} {[%emt 00:03:37]} Rfb8
{[%clk 01:04:04]} {[%emt 00:04:06]} 22. Qd2 {[%clk 00:52:31]} {[%emt 00:05:54]}
e5 {[%clk 01:03:06]} {[%emt 00:01:28]} 23. Qe2 {[%clk 00:50:34]} {[%emt
00:02:28]} Rd8 {[%clk 00:55:46]} {[%emt 00:07:50]} 24. Qg4 {[%clk 00:37:13]}
{[%emt 00:13:50]} Qd7 {[%clk 00:49:42]} {[%emt 00:06:35]} 25. Qxd7 {[%clk
00:30:21]} {[%emt 00:07:22]} Rxd7 {[%clk 00:49:58]} {[%emt 00:00:13]} 26. dxe5
{[%clk 00:30:35]} {[%emt 00:00:17]} Rad8 {[%clk 00:50:11]} {[%emt 00:00:17]} 27.
Rxd7 {[%clk 00:30:09]} {[%emt 00:00:56]} Rxd7 {[%clk 00:50:31]} {[%emt
00:00:10]} 28. Re1 {[%clk 00:26:35]} {[%emt 00:04:04]} Ba5 {[%clk 00:44:16]}
{[%emt 00:06:41]} 29. Rc1 {[%clk 00:26:06]} {[%emt 00:01:02]} Bc3 {[%clk
00:39:57]} {[%emt 00:04:48]} 30. f4 {[%clk 00:24:35]} {[%emt 00:02:03]} Bb2
{[%clk 00:40:14]} {[%emt 00:00:12]} 31. Rf1 {[%clk 00:19:07]} {[%emt 00:05:59]}
Rd3 {[%clk 00:38:56]} {[%emt 00:01:48]} 32. Kf2 {[%clk 00:18:33]} {[%emt
00:01:03]} Rc3 {[%clk 00:37:52]} {[%emt 00:01:35]} 33. Rd1 {[%clk 00:18:06]}
{[%emt 00:00:57]} g5 {[%clk 00:36:29]} {[%emt 00:01:53]} 34. Rd8+ {[%clk
00:16:41]} {[%emt 00:01:55]} Kg7 {[%clk 00:34:46]} {[%emt 00:02:13]} 35. e6
{[%clk 00:16:21]} {[%emt 00:00:50]} Rc2+ {[%clk 00:34:13]} {[%emt 00:01:02]} 36.
Rd2 {[%clk 00:16:32]} {[%emt 00:00:19]} Rxd2+ {[%clk 00:33:49]} {[%emt
00:00:54]} 37. Bxd2 {[%clk 00:16:53]} {[%emt 00:00:09]} fxe6 {[%clk 00:34:02]}
{[%emt 00:00:18]} 38. fxg5 {[%clk 00:17:10]} {[%emt 00:00:13]} Kg6 {[%clk
00:34:21]} {[%emt 00:00:10]} 39. h4 {[%clk 00:16:59]} {[%emt 00:00:41]} Kh5
{[%clk 00:34:39]} {[%emt 00:00:12]} 40. g3 {[%clk 00:16:49]} {[%emt 00:00:41]}
Kg4 {[%clk 00:34:45]} {[%emt 00:00:24]} 41. Be3 {[%clk 00:16:42]} {[%emt
00:00:37]} Be5 {[%clk 00:34:50]} {[%emt 00:00:25]} 42. Kg2 {[%clk 00:15:11]}
{[%emt 00:02:01]} Bxg3 {[%clk 00:33:49]} {[%emt 00:01:30]} 43. h5 {[%clk
00:15:20]} {[%emt 00:00:22]} Be5 {[%clk 00:33:50]} {[%emt 00:00:29]} 44. h6
{[%clk 00:15:11]} {[%emt 00:00:39]} Bb2 {[%clk 00:33:35]} {[%emt 00:00:45]} 45.
Kf2 {[%clk 00:14:46]} {[%emt 00:00:55]} Kf5 {[%clk 00:33:18]} {[%emt 00:00:47]}
46. Kf3 {[%clk 00:14:41]} {[%emt 00:00:34]} e5 {[%clk 00:33:26]} {[%emt
00:00:22]} 47. Ke2 {[%clk 00:11:01]} {[%emt 00:04:10]} Bd4 {[%clk 00:33:30]}
{[%emt 00:00:26]} 48. Bd2 {[%clk 00:05:40]} {[%emt 00:05:51]} Bxc5 {[%clk
00:33:39]} {[%emt 00:00:21]} 49. Kf3 {[%clk 00:04:40]} {[%emt 00:01:29]} e4+
{[%clk 00:34:06]} {[%emt 00:00:05]} 50. Ke2 {[%clk 00:04:59]} {[%emt 00:00:11]}
e3 {[%clk 00:34:31]} {[%emt 00:00:05]} 51. Bc3 {[%clk 00:04:43]} {[%emt
00:00:45]} Kxg5 {[%clk 00:34:50]} {[%emt 00:00:11]} 52. Bg7 {[%clk 00:05:02]}
{[%emt 00:00:11]} Kg6 {[%clk 00:34:51]} {[%emt 00:00:29]} 53. Kf3 {[%clk
00:05:05]} {[%emt 00:00:28]} Be7 {[%clk 00:35:08]} {[%emt 00:00:12]} 54. Kxe3
{[%clk 00:04:13]} {[%emt 00:01:22]} Bg5+ {[%clk 00:35:28]} {[%emt 00:00:10]} 55.
Kd4 {[%clk 00:04:30]} {[%emt 00:00:13]} Bxh6 {[%clk 00:35:43]} {[%emt
00:00:16]} 56. Be5 {[%clk 00:04:35]} {[%emt 00:00:18]} Bg7 {[%clk 00:36:01]}
{[%emt 00:00:19]} 57. Bxg7 {[%clk 00:04:44]} {[%emt 00:00:21]} Kxg7 {[%clk
00:36:23]} {[%emt 00:00:08]} 58. Ke5 {[%clk 00:05:10]} {[%emt 00:00:04]} Kf7
{[%clk 00:36:40]} {[%emt 00:00:13]} 59. Kf5 {[%clk 00:05:28]} {[%emt 00:00:12]}
Ke7 {[%clk 00:36:27]} {[%emt 00:00:43]} 60. Ke5 {[%clk 00:05:47]} {[%emt
00:00:10]} h5 {[%clk 00:36:51]} {[%emt 00:00:07]} 61. Ke4 {[%clk 00:05:49]}
{[%emt 00:00:28]} Kd6 {[%clk 00:37:15]} {[%emt 00:00:05]} 62. Kd4 {[%clk
00:05:48]} {[%emt 00:00:32]} h4 {[%clk 00:37:37]} {[%emt 00:00:07]} 63. Ke3
{[%clk 00:06:10]} {[%emt 00:00:08]} Kc5 {[%clk 00:37:51]} 0-1

[Event "Ebbe Cup 48"]
[Site "Goteborgs Schackcentrum, Vegatan 20, Gothenburg, Sweden"]
[Date "2025.02.15"]
[Round "3.7"]
[White "Sreedvan, Shrishti"]
[Black "Gallardo, Guillermo"]
[Result "0-1"]
[TimeControl "90 minutes + 30 seconds per move from move one"]
[WhiteFideId "1773739"]
[BlackFideId "1773488"]
[WhiteElo "1519"]
[BlackElo "1773"]

1. e4 {[%clk 01:30:59]} {[%emt 00:00:01]} c6 {[%clk 01:30:47]} {[%emt
00:00:14]} 2. d4 {[%clk 01:31:19]} {[%emt 00:00:09]} d5 {[%clk 01:31:11]}
{[%emt 00:00:06]} 3. exd5 {[%clk 01:31:27]} {[%emt 00:00:22]} cxd5 {[%clk
01:31:31]} {[%emt 00:00:10]} 4. Nf3 {[%clk 01:31:25]} {[%emt 00:00:32]} Nc6
{[%clk 01:31:32]} {[%emt 00:00:29]} 5. Be2 {[%clk 01:30:58]} {[%emt 00:00:58]}
Bg4 {[%clk 01:30:48]} {[%emt 00:01:13]} 6. O-O {[%clk 01:30:16]} {[%emt
00:01:12]} e6 {[%clk 01:30:39]} {[%emt 00:00:39]} 7. h3 {[%clk 01:28:41]}
{[%emt 00:02:06]} Bh5 {[%clk 01:30:47]} {[%emt 00:00:21]} 8. Nc3 {[%clk
01:27:52]} {[%emt 00:01:18]} a6 {[%clk 01:29:30]} {[%emt 00:01:48]} 9. Bf4
{[%clk 01:25:09]} {[%emt 00:03:11]} Nf6 {[%clk 01:27:16]} {[%emt 00:02:45]} 10.
a3 {[%clk 01:22:48]} {[%emt 00:02:52]} b5 {[%clk 01:25:19]} {[%emt 00:02:27]}
11. b4 {[%clk 01:18:46]} {[%emt 00:04:32]} Rc8 {[%clk 01:22:54]} {[%emt
00:02:55]} 12. Qd3 {[%clk 01:16:18]} {[%emt 00:02:57]} Bg6 {[%clk 01:21:19]}
{[%emt 00:02:05]} 13. Qd2 {[%clk 01:15:47]} {[%emt 00:01:02]} Ne4 {[%clk
01:14:15]} {[%emt 00:07:34]} 14. Nxe4 {[%clk 01:14:52]} {[%emt 00:01:25]} dxe4
{[%clk 01:10:06]} {[%emt 00:04:38]} 15. Ne5 {[%clk 01:09:33]} {[%emt 00:05:49]}
Qxd4 {[%clk 01:02:54]} {[%emt 00:07:42]} 16. Nxg6 {[%clk 01:06:14]} {[%emt
00:03:49]} Qxd2 {[%clk 01:01:04]} {[%emt 00:02:20]} 17. Bxd2 {[%clk 01:06:25]}
{[%emt 00:00:19]} hxg6 {[%clk 01:01:19]} {[%emt 00:00:15]} 18. Rac1 {[%clk
01:04:31]} {[%emt 00:02:24]} Nd4 {[%clk 00:56:29]} {[%emt 00:05:21]} 19. Bd1
{[%clk 01:02:56]} {[%emt 00:02:02]} Be7 {[%clk 00:52:26]} {[%emt 00:04:35]} 20.
c3 {[%clk 01:00:54]} {[%emt 00:02:33]} Nf5 {[%clk 00:49:45]} {[%emt 00:03:10]}
21. Re1 {[%clk 01:00:34]} {[%emt 00:00:50]} Nd6 {[%clk 00:45:15]} {[%emt
00:05:00]} 22. a4 {[%clk 00:57:33]} {[%emt 00:03:31]} Nc4 {[%clk 00:36:50]}
{[%emt 00:08:56]} 23. Bf4 {[%clk 00:55:10]} {[%emt 00:02:31]} e5 {[%clk
00:28:49]} {[%emt 00:08:52]} 24. Bg3 {[%clk 00:54:22]} {[%emt 00:01:18]} f5
{[%clk 00:25:23]} {[%emt 00:03:56]} 25. axb5 {[%clk 00:54:16]} {[%emt
00:00:37]} axb5 {[%clk 00:25:30]} {[%emt 00:00:24]} 26. Bb3 {[%clk 00:50:23]}
{[%emt 00:04:21]} f4 {[%clk 00:17:22]} {[%emt 00:08:40]} 27. Bh2 {[%clk
00:50:31]} {[%emt 00:00:22]} Nd2 {[%clk 00:15:11]} {[%emt 00:02:40]} 28. Bd5
{[%clk 00:48:09]} {[%emt 00:02:51]} Nc4 {[%clk 00:12:51]} {[%emt 00:02:52]} 29.
Bxe4 {[%clk 00:47:35]} {[%emt 00:01:04]} Kf7 {[%clk 00:12:22]} {[%emt
00:00:59]} 30. Red1 {[%clk 00:46:21]} {[%emt 00:01:43]} Rhd8 {[%clk 00:11:52]}
{[%emt 00:01:00]} 31. Rxd8 {[%clk 00:44:32]} {[%emt 00:02:19]} Rxd8 {[%clk
00:08:51]} {[%emt 00:03:32]} 32. Bc6 {[%clk 00:43:27]} {[%emt 00:01:34]} Nd6
{[%clk 00:09:11]} {[%emt 00:00:11]} 33. g3 {[%clk 00:42:18]} {[%emt 00:01:39]}
g5 {[%clk 00:09:27]} {[%emt 00:00:14]} 34. Re1 {[%clk 00:40:29]} {[%emt
00:02:16]} Kf6 {[%clk 00:09:21]} {[%emt 00:00:39]} 35. Bf3 {[%clk 00:37:56]}
{[%emt 00:02:58]} Rc8 {[%clk 00:09:13]} {[%emt 00:00:43]} 36. Rc1 {[%clk
00:37:37]} {[%emt 00:00:49]} Nf5 {[%clk 00:08:38]} {[%emt 00:01:06]} 37. Be2
{[%clk 00:31:39]} {[%emt 00:06:27]} Bxb4 {[%clk 00:07:16]} {[%emt 00:01:53]} 38.
Bxb5 {[%clk 00:31:18]} {[%emt 00:00:51]} Rxc3 {[%clk 00:07:21]} {[%emt
00:00:25]} 39. Rxc3 {[%clk 00:30:19]} {[%emt 00:01:29]} Bxc3 {[%clk 00:07:42]}
{[%emt 00:00:08]} 40. Kg2 {[%clk 00:30:00]} {[%emt 00:00:39]} Nd4 {[%clk
00:07:45]} {[%emt 00:00:38]} 41. Bd3 {[%clk 00:29:24]} {[%emt 00:01:05]} f3+
{[%clk 00:07:08]} {[%emt 00:01:07]} 42. Kf1 {[%clk 00:28:55]} {[%emt 00:00:59]}
Nb3 {[%clk 00:06:04]} {[%emt 00:01:34]} 43. Kg1 {[%clk 00:26:39]} {[%emt
00:02:43]} Nd2 {[%clk 00:06:18]} {[%emt 00:00:20]} 44. g4 {[%clk 00:23:07]}
{[%emt 00:04:01]} e4 {[%clk 00:03:46]} {[%emt 00:03:03]} 45. Bc2 {[%clk
00:23:09]} {[%emt 00:00:27]} Be5 {[%clk 00:03:33]} {[%emt 00:00:43]} 46. Bd1
{[%clk 00:20:50]} {[%emt 00:02:50]} Bxh2+ {[%clk 00:03:17]} {[%emt 00:00:46]}
47. Kxh2 {[%clk 00:21:04]} {[%emt 00:00:16]} Ke5 {[%clk 00:03:31]} {[%emt
00:00:16]} 48. Kg3 {[%clk 00:20:28]} {[%emt 00:01:06]} Nf1# {[%clk 00:03:46]}
{[%emt 00:00:15]} 0-1

[Event "Ebbe Cup 48"]
[Site "Goteborgs Schackcentrum, Vegatan 20, Gothenburg, Sweden"]
[Date "2025.02.15"]
[Round "3.8"]
[White "Hitcher, Oscar"]
[Black "Hassinge, Ove"]
[Result "1-0"]
[TimeControl "90 minutes + 30 seconds per move from move one"]
[WhiteFideId "1746901"]
[BlackFideId "1774530"]
[WhiteElo "1712"]
[BlackElo "1655"]

1. e4 {[%clk 01:30:42]} {[%emt 00:00:21]} c5 {[%clk 01:31:13]} {[%emt
00:00:14]} 2. a3 {[%clk 01:30:53]} {[%emt 00:00:19]} g6 {[%clk 01:30:52]}
{[%emt 00:00:51]} 3. Nf3 {[%clk 01:30:38]} {[%emt 00:00:45]} Bg7 {[%clk
01:29:05]} {[%emt 00:02:17]} 4. Bc4 {[%clk 01:29:36]} {[%emt 00:01:31]} e6
{[%clk 01:27:47]} {[%emt 00:01:48]} 5. O-O {[%clk 01:28:46]} {[%emt 00:01:20]}
Ne7 {[%clk 01:27:26]} {[%emt 00:00:52]} 6. c3 {[%clk 01:25:12]} {[%emt
00:04:04]} O-O {[%clk 01:22:19]} {[%emt 00:05:37]} 7. d4 {[%clk 01:25:04]}
{[%emt 00:00:37]} cxd4 {[%clk 01:21:54]} {[%emt 00:00:56]} 8. Nxd4 {[%clk
01:25:00]} {[%emt 00:00:34]} d5 {[%clk 01:19:46]} {[%emt 00:02:39]} 9. exd5
{[%clk 01:24:51]} {[%emt 00:00:38]} Nxd5 {[%clk 01:19:31]} {[%emt 00:00:45]} 10.
Bxd5 {[%clk 01:23:34]} {[%emt 00:01:47]} Qxd5 {[%clk 01:15:58]} {[%emt
00:04:03]} 11. Be3 {[%clk 01:22:45]} {[%emt 00:01:18]} e5 {[%clk 01:13:26]}
{[%emt 00:03:03]} 12. Nb3 {[%clk 01:22:12]} {[%emt 00:01:03]} Rd8 {[%clk
01:09:24]} {[%emt 00:04:32]} 13. N1d2 {[%clk 01:20:13]} {[%emt 00:02:28]} Nc6
{[%clk 01:05:04]} {[%emt 00:04:51]} 14. Bg5 {[%clk 01:18:35]} {[%emt 00:02:07]}
Re8 {[%clk 01:02:40]} {[%emt 00:02:55]} 15. Re1 {[%clk 01:14:51]} {[%emt
00:04:12]} Be6 {[%clk 01:00:20]} {[%emt 00:02:51]} 16. c4 {[%clk 01:10:51]}
{[%emt 00:04:30]} Qd6 {[%clk 00:55:53]} {[%emt 00:04:58]} 17. Qf3 {[%clk
01:09:31]} {[%emt 00:01:49]} Nd4 {[%clk 00:53:49]} {[%emt 00:02:35]} 18. Nxd4
{[%clk 01:07:48]} {[%emt 00:02:12]} Qxd4 {[%clk 00:53:25]} {[%emt 00:00:54]} 19.
b3 {[%clk 01:06:07]} {[%emt 00:02:12]} h6 {[%clk 00:51:29]} {[%emt 00:02:25]}
20. Be3 {[%clk 01:05:27]} {[%emt 00:01:10]} Qd7 {[%clk 00:51:33]} {[%emt
00:00:27]} 21. Ne4 {[%clk 01:05:15]} {[%emt 00:00:42]} Bf5 {[%clk 00:41:33]}
{[%emt 00:10:30]} 22. Rad1 {[%clk 01:01:33]} {[%emt 00:04:11]} Qc6 {[%clk
00:39:28]} {[%emt 00:02:36]} 23. Nd6 {[%clk 00:55:18]} {[%emt 00:06:44]} Qxf3
{[%clk 00:37:34]} {[%emt 00:02:25]} 24. gxf3 {[%clk 00:55:39]} {[%emt
00:00:08]} Re7 {[%clk 00:34:39]} {[%emt 00:03:25]} 25. Nxf5 {[%clk 00:55:15]}
{[%emt 00:00:55]} gxf5 {[%clk 00:34:37]} {[%emt 00:00:32]} 26. Bc5 {[%clk
00:54:02]} {[%emt 00:01:42]} Ree8 {[%clk 00:33:30]} {[%emt 00:01:37]} 27. Rd5
{[%clk 00:53:12]} {[%emt 00:01:20]} b6 {[%clk 00:31:03]} {[%emt 00:02:58]} 28.
Bb4 {[%clk 00:52:43]} {[%emt 00:00:58]} Re6 {[%clk 00:27:45]} {[%emt 00:03:49]}
29. Red1 {[%clk 00:51:23]} {[%emt 00:01:49]} a5 {[%clk 00:22:54]} {[%emt
00:05:22]} 30. Bc3 {[%clk 00:51:21]} {[%emt 00:00:30]} e4 {[%clk 00:21:57]}
{[%emt 00:01:29]} 31. Bxg7 {[%clk 00:48:32]} {[%emt 00:03:20]} Kxg7 {[%clk
00:22:20]} {[%emt 00:00:08]} 32. Rxf5 {[%clk 00:47:18]} {[%emt 00:01:43]} Kg6
{[%clk 00:21:49]} {[%emt 00:01:00]} 33. fxe4 {[%clk 00:46:58]} {[%emt
00:00:50]} Rxe4 {[%clk 00:22:06]} {[%emt 00:00:13]} 34. Rb5 {[%clk 00:46:34]}
{[%emt 00:00:54]} Re6 {[%clk 00:21:40]} {[%emt 00:00:56]} 35. f4 {[%clk
00:45:35]} {[%emt 00:01:29]} f5 {[%clk 00:19:57]} {[%emt 00:02:14]} 36. Kf2
{[%clk 00:45:19]} {[%emt 00:00:45]} Rae8 {[%clk 00:19:36]} {[%emt 00:00:51]} 37.
Re5 {[%clk 00:43:10]} {[%emt 00:02:38]} Rxe5 {[%clk 00:18:40]} {[%emt
00:01:26]} 38. fxe5 {[%clk 00:43:23]} {[%emt 00:00:17]} Re6 {[%clk 00:18:46]}
{[%emt 00:00:25]} 39. Rd6 {[%clk 00:43:14]} {[%emt 00:00:38]} Kf7 {[%clk
00:18:39]} {[%emt 00:00:38]} 40. Rd5 {[%clk 00:41:54]} {[%emt 00:01:50]} Kg6
{[%clk 00:18:50]} {[%emt 00:00:18]} 41. Kf3 {[%clk 00:41:37]} {[%emt 00:00:47]}
Kg5 {[%clk 00:19:00]} {[%emt 00:00:11]} 42. b4 {[%clk 00:41:15]} {[%emt
00:01:01]} axb4 {[%clk 00:19:09]} {[%emt 00:00:21]} 43. axb4 {[%clk 00:41:39]}
{[%emt 00:00:07]} f4 {[%clk 00:18:52]} {[%emt 00:00:45]} 44. c5 {[%clk
00:40:38]} {[%emt 00:01:33]} bxc5 {[%clk 00:19:03]} {[%emt 00:00:19]} 45. bxc5
{[%clk 00:40:48]} {[%emt 00:00:20]} Kf5 {[%clk 00:19:04]} {[%emt 00:00:28]} 46.
h4 {[%clk 00:40:25]} {[%emt 00:00:53]} h5 {[%clk 00:18:44]} {[%emt 00:00:50]}
47. Rd4 {[%clk 00:39:11]} {[%emt 00:01:45]} Rxe5 {[%clk 00:16:05]} {[%emt
00:03:05]} 48. Rxf4+ {[%clk 00:39:08]} {[%emt 00:00:36]} Kg6 {[%clk 00:16:15]}
{[%emt 00:00:20]} 49. Rc4 {[%clk 00:38:46]} {[%emt 00:00:53]} Re7 {[%clk
00:14:39]} {[%emt 00:02:06]} 50. c6 {[%clk 00:38:58]} {[%emt 00:00:18]} Rc7
{[%clk 00:15:01]} {[%emt 00:00:07]} 51. Ke4 {[%clk 00:39:05]} {[%emt 00:00:23]}
Kf6 {[%clk 00:15:05]} {[%emt 00:00:27]} 52. Kd5 {[%clk 00:39:16]} {[%emt
00:00:19]} Ke7 {[%clk 00:14:54]} {[%emt 00:00:40]} 53. Rc5 {[%clk 00:39:16]}
{[%emt 00:00:30]} Kd8 {[%clk 00:15:13]} {[%emt 00:00:12]} 54. Kd6 {[%clk
00:38:45]} {[%emt 00:01:00]} Rh7 {[%clk 00:15:28]} {[%emt 00:00:16]} 55. Re5
{[%clk 00:38:36]} {[%emt 00:00:38]} Rh6+ {[%clk 00:14:42]} {[%emt 00:01:16]} 56.
Kc5 {[%clk 00:36:59]} {[%emt 00:02:08]} Kc7 {[%clk 00:14:33]} {[%emt 00:00:39]}
57. Re7+ {[%clk 00:37:11]} {[%emt 00:00:16]} Kc8 {[%clk 00:10:56]} {[%emt
00:04:08]} 58. Kb6 {[%clk 00:37:03]} {[%emt 00:00:38]} Rh8 {[%clk 00:11:00]}
{[%emt 00:00:26]} 59. Ra7 {[%clk 00:36:32]} {[%emt 00:01:01]} 1-0

[Event "Ebbe Cup 48"]
[Site "Goteborgs Schackcentrum, Vegatan 20, Gothenburg, Sweden"]
[Date "2025.02.15"]
[Round "3.9"]
[White "Hamsten, Martin"]
[Black "Laudinger, Christian"]
[Result "1/2-1/2"]
[TimeControl "90 minutes + 30 seconds per move from move one"]
[WhiteFideId "1780425"]
[BlackFideId "1774638"]
[WhiteElo "1669"]
[BlackElo "1626"]

1. e4 {[%clk 01:30:58]} {[%emt 00:00:01]} d6 {[%clk 01:30:54]} {[%emt
00:00:06]} 2. d4 {[%clk 01:31:23]} {[%emt 00:00:05]} Nf6 {[%clk 01:31:18]}
{[%emt 00:00:07]} 3. Nc3 {[%clk 01:31:50]} {[%emt 00:00:04]} g6 {[%clk
01:31:37]} {[%emt 00:00:11]} 4. Be3 {[%clk 01:31:35]} {[%emt 00:00:44]} a6
{[%clk 01:31:34]} {[%emt 00:00:33]} 5. a4 {[%clk 01:31:01]} {[%emt 00:01:04]}
Bg7 {[%clk 01:30:08]} {[%emt 00:01:56]} 6. Nf3 {[%clk 01:30:53]} {[%emt
00:00:38]} O-O {[%clk 01:30:19]} {[%emt 00:00:17]} 7. Bc4 {[%clk 01:31:02]}
{[%emt 00:00:23]} Nxe4 {[%clk 01:29:15]} {[%emt 00:01:35]} 8. Nxe4 {[%clk
01:31:21]} {[%emt 00:00:11]} d5 {[%clk 01:29:38]} {[%emt 00:00:06]} 9. Bxd5
{[%clk 01:31:40]} {[%emt 00:00:11]} Qxd5 {[%clk 01:29:52]} {[%emt 00:00:16]} 10.
Nc3 {[%clk 01:31:36]} {[%emt 00:00:35]} Qd8 {[%clk 01:22:35]} {[%emt 00:07:47]}
11. O-O {[%clk 01:31:20]} {[%emt 00:00:44]} h6 {[%clk 01:18:28]} {[%emt
00:04:38]} 12. Re1 {[%clk 01:30:16]} {[%emt 00:01:34]} b6 {[%clk 01:16:52]}
{[%emt 00:02:06]} 13. Qd2 {[%clk 01:28:41]} {[%emt 00:02:05]} Kh7 {[%clk
01:17:02]} {[%emt 00:00:21]} 14. h4 {[%clk 01:25:41]} {[%emt 00:03:29]} Bb7
{[%clk 01:14:27]} {[%emt 00:03:05]} 15. h5 {[%clk 01:24:12]} {[%emt 00:01:59]}
e6 {[%clk 01:10:40]} {[%emt 00:04:17]} 16. hxg6+ {[%clk 01:23:12]} {[%emt
00:01:30]} fxg6 {[%clk 01:10:55]} {[%emt 00:00:15]} 17. Ne5 {[%clk 01:16:18]}
{[%emt 00:07:24]} Nd7 {[%clk 01:09:37]} {[%emt 00:01:48]} 18. Nxd7 {[%clk
01:13:52]} {[%emt 00:02:55]} Qxd7 {[%clk 01:10:02]} {[%emt 00:00:07]} 19. Re2
{[%clk 01:10:12]} {[%emt 00:04:09]} Rf5 {[%clk 01:06:55]} {[%emt 00:03:36]} 20.
Rae1 {[%clk 01:08:58]} {[%emt 00:01:45]} Raf8 {[%clk 01:05:24]} {[%emt
00:02:01]} 21. d5 {[%clk 01:06:20]} {[%emt 00:03:08]} exd5 {[%clk 00:59:56]}
{[%emt 00:05:58]} 22. Bd4 {[%clk 01:05:01]} {[%emt 00:01:49]} R8f7 {[%clk
00:57:32]} {[%emt 00:02:54]} 23. Bxg7 {[%clk 01:04:25]} {[%emt 00:01:06]} Kxg7
{[%clk 00:57:12]} {[%emt 00:00:50]} 24. Qd4+ {[%clk 01:04:22]} {[%emt
00:00:33]} Kh7 {[%clk 00:57:05]} {[%emt 00:00:37]} 25. Re8 {[%clk 01:04:17]}
{[%emt 00:00:35]} Rg7 {[%clk 00:50:03]} {[%emt 00:07:32]} 26. Rb8 {[%clk
01:01:20]} {[%emt 00:03:28]} Bc8 {[%clk 00:47:44]} {[%emt 00:02:49]} 27. Re5
{[%clk 00:54:50]} {[%emt 00:06:58]} Rxe5 {[%clk 00:39:34]} {[%emt 00:08:41]} 28.
Qxe5 {[%clk 00:55:12]} {[%emt 00:00:08]} Re7 {[%clk 00:39:54]} {[%emt
00:00:09]} 29. Qxd5 {[%clk 00:54:53]} {[%emt 00:00:49]} Qg4 {[%clk 00:38:18]}
{[%emt 00:02:06]} 30. Ne4 {[%clk 00:48:40]} {[%emt 00:06:43]} Qxe4 {[%clk
00:30:08]} {[%emt 00:08:41]} 31. Qxe4 {[%clk 00:48:56]} {[%emt 00:00:14]} Rxe4
{[%clk 00:30:33]} {[%emt 00:00:06]} 32. Rxc8 {[%clk 00:49:17]} {[%emt
00:00:09]} Re7 {[%clk 00:28:40]} {[%emt 00:02:22]} 33. b4 {[%clk 00:48:45]}
{[%emt 00:01:02]} Kg7 {[%clk 00:27:45]} {[%emt 00:01:25]} 34. Ra8 {[%clk
00:48:41]} {[%emt 00:00:34]} Re1+ {[%clk 00:26:33]} {[%emt 00:01:42]} 35. Kh2
{[%clk 00:49:03]} {[%emt 00:00:09]} Rc1 {[%clk 00:26:51]} {[%emt 00:00:12]} 36.
Rxa6 {[%clk 00:49:04]} {[%emt 00:00:29]} Rxc2 {[%clk 00:27:00]} {[%emt
00:00:21]} 37. a5 {[%clk 00:48:25]} {[%emt 00:01:09]} bxa5 {[%clk 00:20:39]}
{[%emt 00:06:51]} 38. bxa5 {[%clk 00:48:07]} {[%emt 00:00:48]} Rxf2 {[%clk
00:20:37]} {[%emt 00:00:32]} 39. Rc6 {[%clk 00:48:17]} {[%emt 00:00:19]} Ra2
{[%clk 00:20:45]} {[%emt 00:00:23]} 40. Rxc7+ {[%clk 00:48:20]} {[%emt
00:00:26]} Kf6 {[%clk 00:17:52]} {[%emt 00:03:24]} 41. Ra7 {[%clk 00:47:09]}
{[%emt 00:01:41]} Kg5 {[%clk 00:17:52]} {[%emt 00:00:30]} 42. a6 {[%clk
00:46:41]} {[%emt 00:00:58]} Kh5 {[%clk 00:15:57]} {[%emt 00:02:25]} 43. Kg3
{[%clk 00:45:41]} {[%emt 00:01:29]} Kg5 {[%clk 00:15:42]} {[%emt 00:00:45]} 44.
Kf3 {[%clk 00:45:26]} {[%emt 00:00:46]} h5 {[%clk 00:15:44]} {[%emt 00:00:28]}
45. Ra8 {[%clk 00:43:48]} {[%emt 00:02:08]} h4 {[%clk 00:15:17]} {[%emt
00:00:57]} 46. a7 {[%clk 00:43:28]} {[%emt 00:00:51]} Ra3+ {[%clk 00:15:19]}
{[%emt 00:00:27]} 47. Ke4 {[%clk 00:42:55]} {[%emt 00:01:02]} Kg4 {[%clk
00:13:16]} 1/2-1/2